bitfinex/quotes_ETHUSD_20250526
["timestamp","ask_amount","ask_price","bid_price","bid_amount"]
[1748217601527,0.36649137,2549.0,2548.6,0.9405]
[1748217601697,0.36649137,2548.9,2548.6,0.9405]
[1748217602598,0.37528761,2549.3,2548.6,0.9405]
[1748217603633,0.7419145,2549.2,2548.6,0.9405]
[1748217604134,1.6755145,2549.2,2548.6,0.9405]
[1748217604536,0.36662689,2549.1,2548.6,0.9405]
[1748217605002,0.7419145,2549.1,2548.6,0.9405]
[1748217605204,0.36662689,2549.0,2548.6,0.9405]
[1748217605405,0.36662689,2549.0,2548.2,6.01]
[1748217605406,0.36662689,2549.0,2548.9,2.3539566]
[1748217605618,0.46910951,2549.5,2548.9,0.80489386]
[1748217605798,4.39149675,2549.5,2548.7,0.9869]
[1748217606128,3.92304066,2549.1,2548.7,0.9869]
[1748217606288,3.92334348,2548.9,2548.7,0.9869]
[1748217606715,3.92341494,2548.8,2548.7,0.9869]
[1748217608040,4.88553036,2549.4,2548.7,0.9869]
[1748217608336,3.92277892,2549.3,2548.9,0.9248]
[1748217608635,0.46910951,2549.6,2548.9,3.27874604]
[1748217608834,3.92260106,2549.4,2549.1,0.9248]
[1748217609309,3.9224044,2549.5,2549.1,0.9248]
[1748217609843,3.92250052,2549.4,2549.1,0.9248]
[1748217610010,4.39108351,2549.8,2549.1,2.3537178]
[1748217610213,3.92156862,2550.0,2549.3,2.35353129]
[1748217610537,3.92205039,2549.7,2549.4,0.9508]
[1748217610740,3.92203004,2549.7,2549.4,0.9508]
[1748217610938,3.92189622,2549.8,2549.4,0.9508]
[1748217611114,3.92206143,2549.7,2549.4,0.9508]
[1748217611440,3.9222637,2549.6,2549.4,0.9508]
[1748217611618,3.92225908,2549.6,2549.4,0.9508]
[1748217612407,3.92211813,2549.7,2549.4,0.9508]
[1748217612720,3.92233771,2549.5,2549.4,1.30806237]
[1748217612936,3.92207765,2549.7,2549.4,0.9508]
[1748217613125,3.92225015,2549.6,2549.4,0.9508]
[1748217613507,3.92193773,2549.8,2549.4,0.9508]
[1748217613837,3.92203004,2549.7,2549.4,0.9508]
[1748217614041,3.92195988,2549.8,2549.4,0.9508]
[1748217614242,3.92203967,2549.7,2549.5,0.33043674]
[1748217614745,3.92203967,2549.7,2549.4,0.9508]
[1748217615118,3.9222219,2549.6,2549.4,0.9508]
[1748217615637,3.92233771,2549.5,2549.4,0.9508]
[1748217615950,3.9227993,2549.2,2549.1,0.9851]
[1748217617036,3.92272603,2549.3,2549.1,0.9851]
[1748217617240,3.92272603,2549.3,2549.1,2.11600497]
[1748217618954,4.29638322,2549.9,2549.1,2.11600497]
[1748217619156,3.92259451,2549.4,2549.1,0.9851]
[1748217619557,0.3745171,2549.9,2549.1,2.35369967]
[1748217619729,3.92224893,2549.6,2549.2,0.985]
[1748217619929,0.36575625,2549.8,2549.2,6.995]
[1748217620256,3.92264543,2549.3,2549.2,6.01]
[1748217620559,0.9976,2549.7,2549.0,4.902]
[1748217620560,3.92295319,2549.1,2549.0,4.902]
[1748217621126,3.92324245,2549.0,2548.9,3.917]
[1748217621325,3.92326101,2548.9,2548.8,0.9931]
[1748217621865,3.92341494,2548.8,2548.7,3.917]
[1748217622225,3.92341494,2548.8,2548.7,6.95974382]
[1748217622759,3.92341494,2548.8,2548.7,3.04274382]
[1748217623265,4.83521494,2548.8,2548.7,3.04274382]
[1748217623576,5.2011687,2548.8,2548.7,3.04274382]
[1748217624276,5.57581605,2548.8,2548.7,3.04274382]
[1748217625342,5.20986229,2548.8,2548.7,3.04274382]
[1748217625962,4.83521494,2548.8,2548.7,3.04274382]
[1748217627281,5.20071538,2548.8,2548.7,3.04274382]
[1748217628335,4.83521494,2548.8,2548.7,3.04274382]
[1748217630238,5.2003587,2548.8,2548.7,3.04274382]
[1748217632469,5.7503587,2548.8,2548.7,3.04274382]
[1748217632851,5.2003587,2548.8,2548.7,3.04274382]
[1748217634389,5.7503587,2548.8,2548.7,2.16320067]
[1748217634594,8.1033587,2548.8,2548.7,2.16320067]
[1748217634885,7.73821494,2548.8,2548.7,1.85900057]
[1748217635594,8.73834164,2548.8,2548.7,1.85900057]
[1748217635978,18.64834164,2548.8,2548.7,1.85900057]
[1748217636395,14.52234164,2548.8,2548.7,1.85900057]
[1748217636906,13.89686229,2548.8,2548.7,1.85900057]
[1748217637065,16.24986229,2548.8,2548.7,1.85900057]
[1748217637407,16.61408571,2548.8,2548.7,1.85900057]
[1748217638704,12.69608571,2548.8,2548.7,1.85900057]
[1748217638909,16.25086229,2548.8,2548.7,1.85900057]
[1748217640550,5.20986229,2548.8,2548.7,1.85900057]
[1748217640816,9.42986229,2548.8,2548.7,1.85900057]
[1748217641171,12.33286229,2548.8,2548.7,1.85900057]
[1748217641711,9.42986229,2548.8,2548.7,1.85900057]
[1748217647315,4.29806229,2548.8,2548.7,1.85900057]
[1748217647491,4.29806229,2548.8,2548.7,2.77380057]
[1748217648214,3.92341494,2548.8,2548.7,2.77380057]
[1748217649417,3.92341494,2548.8,2548.7,1.85900057]
[1748217652815,4.29806229,2548.8,2548.7,1.85900057]
[1748217655593,4.76428886,2548.8,2548.7,1.85900057]
[1748217657133,7.11728886,2548.8,2548.7,1.85900057]
[1748217658971,11.33728886,2548.8,2548.7,1.85900057]
[1748217659276,4.76428886,2548.8,2548.7,1.85900057]
[1748217659566,8.98428886,2548.8,2548.7,1.85900057]
[1748217660645,4.76428886,2548.8,2548.7,1.85900057]
[1748217660861,4.29806229,2548.8,2548.7,1.85900057]
[1748217662573,3.92341494,2548.8,2548.7,1.85900057]
[1748217664236,4.29806229,2548.8,2548.7,1.85900057]
[1748217668667,0.37464735,2548.8,2548.7,3.15172063]
[1748217668996,0.37464735,2548.8,2548.7,17.16172063]
[1748217669884,3.92317371,2549.0,2548.9,0.9483]
[1748217670055,3.92317371,2549.0,2548.9,12.8673]
[1748217670255,3.92317371,2549.0,2548.9,14.96958206]
[1748217670496,3.92286608,2549.2,2549.1,0.9494]
[1748217671275,3.9227993,2549.2,2549.1,0.9494]
[1748217671866,3.92326101,2548.9,2548.7,1.85900057]
[1748217672081,3.92341494,2548.8,2548.7,1.85900057]
[1748217675500,3.92341494,2548.8,2548.7,2.84650057]
[1748217675701,4.29791472,2548.9,2548.8,8.9875]
[1748217677059,3.92326737,2548.9,2548.8,8.9875]
[1748217677910,3.9231831,2549.0,2548.9,1.0033]
[1748217680395,3.92326101,2548.9,2548.8,0.5]
[1748217680595,3.92341494,2548.8,2548.7,1.85900057]
[1748217682982,3.92341494,2548.8,2548.7,15.69690063]
[1748217683281,3.92341494,2548.8,2548.7,7.69690063]
[1748217683482,3.92341494,2548.8,2548.7,6.71100057]
[1748217683926,3.92341494,2548.8,2548.7,7.21100057]
[1748217684075,3.92341494,2548.8,2548.7,6.71100057]
[1748217685804,3.92341494,2548.8,2548.7,2.79300057]
[1748217686309,3.92341494,2548.8,2548.7,10.79300057]
[1748217688904,3.92341494,2548.8,2548.7,1.85900057]
[1748217689598,4.89611494,2548.8,2548.7,1.85900057]
[1748217691389,3.92341494,2548.8,2548.7,1.85900057]
[1748217691607,3.92341494,2548.8,2548.7,10.78150057]
[1748217700257,3.92341494,2548.8,2548.7,9.85900057]
[1748217701851,3.92333945,2548.9,2548.7,9.85900057]
[1748217702030,0.37480815,2549.1,2548.9,8.0]
[1748217702237,0.37480815,2549.1,2549.0,12.89242782]
[1748217702431,3.92284579,2549.2,2549.1,8.9352]
[1748217703160,3.92257841,2549.4,2549.1,0.9352]
[1748217703368,4.29721507,2549.5,2549.4,0.9417]
[1748217703868,4.29721507,2549.5,2549.4,12.8597]
[1748217704161,3.92240692,2549.5,2549.4,12.8597]
[1748217705224,2.34918475,2549.9,2549.6,0.9934]
[1748217705225,6.27098783,2549.9,2549.6,0.9934]
[1748217705462,2.34918475,2549.9,2549.8,8.9934]
[1748217705786,1.9743766,2549.9,2549.8,13.18766573]
[1748217706357,2.72014334,2550.1,2550.0,3.32024117]
[1748217706544,2.72014334,2550.1,2550.0,15.23824117]
[1748217706745,2.72014334,2550.1,2550.0,14.82854744]
[1748217706992,2.72014334,2550.1,2550.0,17.18148861]
[1748217707646,2.72014334,2550.1,2550.0,14.82854744]
[1748217707888,2.72014334,2550.1,2550.0,15.02306526]
[1748217709793,2.72014334,2550.1,2550.0,15.57306526]
[1748217710813,2.72014334,2550.1,2550.0,11.65506526]
[1748217711013,6.64155818,2550.1,2550.0,15.57206526]
[1748217711189,2.72014334,2550.1,2550.0,15.57206526]
[1748217712073,6.64155818,2550.1,2550.0,15.02206526]
[1748217712598,2.72014334,2550.1,2550.0,15.57206526]
[1748217713715,6.64155818,2550.1,2550.0,2.91054744]
[1748217713913,6.64155818,2550.1,2550.0,3.916]
[1748217714116,0.9749,2550.0,2549.2,0.48532]
[1748217714278,3.92249156,2549.4,2549.3,3.916]
[1748217714475,3.92249156,2549.4,2549.3,11.916]
[1748217714697,3.92249156,2549.4,2549.3,12.416]
[1748217715017,3.92249156,2549.4,2549.3,4.416]
[1748217715323,3.92236411,2549.5,2549.3,4.96761831]
[1748217715676,3.92236411,2549.5,2549.4,11.916]
[1748217718193,3.92236411,2549.5,2549.4,8.0]
[1748217719202,3.92187622,2549.8,2549.5,8.0]
[1748217719383,3.92218387,2549.6,2549.5,8.0]
[1748217719575,2.72014334,2550.1,2549.6,0.55]
[1748217719778,3.92157739,2550.0,2549.9,0.9475]
[1748217719974,3.92157739,2550.0,2549.9,12.8635]
[1748217720222,3.88236247,2550.0,2549.9,12.8635]
[1748217720420,2.72014334,2550.1,2549.9,4.8635]
[1748217720727,6.64164943,2550.1,2550.0,8.48635]
[1748217720949,2.72014334,2550.1,2550.0,8.48635]
[1748217721454,1.17822334,2550.1,2550.0,11.38929117]
[1748217721660,1.17822334,2550.1,2550.0,9.94945]
[1748217721863,5.09963818,2550.1,2550.0,9.39945]
[1748217722059,3.92172841,2549.9,2549.7,8.9131]
[1748217722251,3.92187622,2549.8,2549.7,1.4631]
[1748217722417,3.92179687,2549.9,2549.7,5.3801]
[1748217722614,3.92164942,2550.0,2549.7,5.3801]
[1748217723029,1.17822334,2550.1,2549.8,0.55]
[1748217723227,1.17822334,2550.1,2550.0,8.0]
[1748217723446,5.09963818,2550.1,2550.0,8.0]
[1748217724515,3.92172242,2549.9,2549.5,1.84257183]
[1748217724711,3.92218387,2549.6,2549.5,0.5]
[1748217725021,3.92218387,2549.6,2549.5,11.916]
[1748217725563,3.92205629,2549.7,2549.1,0.9308]
[1748217725735,3.9227993,2549.2,2549.1,0.9308]
[1748217725950,4.85535629,2549.7,2549.2,8.0]
[1748217725951,3.92239415,2549.5,2549.2,8.0]
[1748217726151,3.92224045,2549.6,2549.4,8.0]
[1748217726355,3.92224045,2549.6,2549.5,3.916]
[1748217726528,3.92224045,2549.6,2549.5,11.916]
[1748217727263,3.92208887,2549.7,2549.6,8.0]
[1748217727466,3.92208887,2549.7,2549.6,2.0416]
[1748217727654,3.92218387,2549.6,2549.5,3.916]
[1748217727959,1.17822334,2550.1,2549.5,3.916]
[1748217728261,3.92189822,2549.8,2549.6,8.0]
[1748217728465,3.92179496,2549.9,2549.6,8.0]
[1748217728667,5.09974747,2550.1,2549.7,0.9962]
[1748217728876,3.92187622,2549.8,2549.7,0.9962]
[1748217729078,3.92187622,2549.8,2549.7,12.9122]
[1748217729253,1.17822334,2550.1,2549.7,12.9122]
[1748217729254,3.92172242,2549.9,2549.7,4.9122]
[1748217729446,3.92187622,2549.8,2549.7,4.9122]
[1748217729669,3.92187622,2549.8,2549.7,13.40342]
[1748217729871,1.17822334,2550.1,2549.8,8.0]
[1748217730079,3.9215926,2550.0,2549.7,5.40342]
[1748217730407,1.17822334,2550.1,2549.8,8.0]
[1748217732287,1.17822334,2550.1,2550.0,8.55]
[1748217732585,1.17822334,2550.1,2550.0,22.52417249]
[1748217732889,1.17822334,2550.1,2550.0,20.17123132]
[1748217736577,1.17822334,2550.1,2550.0,21.12423132]
[1748217737194,5.09963818,2550.1,2550.0,16.65823132]
[1748217737499,5.09963818,2550.1,2550.0,17.926]
[1748217737866,5.09963818,2550.1,2550.0,3.916]
[1748217738063,3.92156862,2550.0,2549.9,3.916]
[1748217738382,3.92156862,2550.0,2549.9,11.916]
[1748217739611,3.92156862,2550.0,2549.9,8.0]
[1748217739781,3.92156862,2550.0,2549.9,11.916]
[1748217745182,1.17822334,2550.1,2549.9,12.86208733]
[1748217745380,1.17822334,2550.1,2549.9,4.86208733]
[1748217745773,5.09964037,2550.1,2549.9,4.86208733]
[1748217748481,1.17822334,2550.1,2550.0,9.4654]
[1748217749316,1.17822334,2550.1,2550.0,11.81834117]
[1748217749636,1.17822334,2550.1,2550.0,17.37875208]
[1748217750011,1.17822334,2550.1,2550.0,19.73169325]
[1748217751846,1.17822334,2550.1,2550.0,17.37875208]
[1748217751993,1.17822334,2550.1,2550.0,23.64769325]
[1748217752194,1.17822334,2550.1,2550.0,19.73169325]
[1748217752494,1.17822334,2550.1,2550.0,23.64769325]
[1748217755244,3.95404382,2551.2,2550.7,0.55]
[1748217755399,2.13484382,2551.2,2550.8,11.95519655]
[1748217755601,3.9193722,2551.5,2551.0,8.0]
[1748217755942,3.91957041,2551.3,2551.2,8.0]
[1748217756827,3.92029036,2550.9,2550.7,9.925]
[1748217757028,3.92033871,2550.8,2550.7,17.925]
[1748217758496,4.85093871,2550.8,2550.7,11.915]
[1748217758741,3.92033871,2550.8,2550.7,11.915]
[1748217760445,0.9306,2551.0,2550.7,11.915]
[1748217760644,3.92018503,2550.9,2550.8,1.1915]
[1748217761139,3.92018503,2550.9,2550.8,9.1915]
[1748217761318,3.92018503,2550.9,2550.8,8.0]
[1748217762042,3.92018503,2550.9,2550.8,8.5]
[1748217762831,1.0039,2551.5,2550.9,8.0]
[1748217763108,3.81084924,2551.2,2551.1,8.0]
[1748217763646,4.92318023,2551.5,2550.8,1.4377]
[1748217763647,3.92014086,2551.0,2550.8,1.4377]
[1748217763820,3.92014086,2551.0,2550.9,3.915]
[1748217764235,3.91996711,2551.1,2550.9,3.915]
[1748217765347,3.92003136,2551.0,2550.9,3.915]
[1748217765504,3.91995037,2551.1,2550.9,3.915]
[1748217765904,3.91957041,2551.3,2550.8,0.5]
[1748217766149,3.91972405,2551.2,2551.0,8.0]
[1748217766309,3.91987769,2551.1,2551.0,8.0]
[1748217766934,4.91087769,2551.1,2551.0,8.0]
[1748217767332,3.92018503,2550.9,2550.8,0.5]
[1748217767536,3.92018503,2550.9,2550.8,12.415]
[1748217769025,3.92012769,2551.0,2550.9,8.0]
[1748217770419,0.991,2551.5,2550.9,10.242]
[1748217770615,0.991,2551.5,2551.1,8.0]
[1748217770858,3.91912279,2551.6,2551.1,8.0]
[1748217770859,3.91948784,2551.4,2551.2,3.915]
[1748217771258,3.91957041,2551.3,2551.2,11.915]
[1748217771663,3.91947351,2551.4,2551.2,11.915]
[1748217771836,3.91957041,2551.3,2551.2,11.915]
[1748217773561,0.991,2551.7,2551.2,5.1065]
[1748217773830,3.91923219,2551.6,2551.3,0.03918979]
[1748217774032,3.91932591,2551.5,2551.4,11.915]
[1748217774526,3.91932591,2551.5,2551.4,3.915]
[1748217774758,3.91932591,2551.5,2551.1,8.0]
[1748217774960,3.91972405,2551.2,2551.1,8.0]
[1748217775132,3.91972405,2551.2,2551.1,3.915]
[1748217775333,3.91963613,2551.3,2551.1,3.915]
[1748217775531,3.91910957,2551.6,2551.1,3.915]
[1748217775869,3.9194999,2551.4,2551.1,3.915]
[1748217776173,1.58135982,2551.8,2551.3,8.9824]
[1748217776328,3.91898074,2551.7,2551.5,8.0]
[1748217776527,3.91898074,2551.7,2551.6,11.915]
[1748217777280,3.91957041,2551.3,2551.2,17.924]
[1748217778165,3.91930341,2551.5,2551.3,8.0]
[1748217778369,3.91957041,2551.3,2551.2,9.924]
[1748217778581,3.91957041,2551.3,2551.2,11.914]
[1748217778985,3.91957041,2551.3,2551.2,8.0]
[1748217779169,3.91957041,2551.3,2551.2,12.414]
[1748217779373,1.58135982,2551.8,2551.4,8.0]
[1748217779550,1.58135982,2551.8,2551.6,8.0]
[1748217779753,5.50016223,2551.8,2551.7,11.914]
[1748217780181,1.58135982,2551.8,2551.7,12.8895]
[1748217780382,0.29820204,2551.8,2551.7,16.98227359]
[1748217780851,0.29820204,2551.8,2551.7,17.17284271]
[1748217781597,0.024,2552.0,2551.8,10.35128144]
[1748217781782,0.024,2552.0,2551.8,11.89448144]
[1748217781986,0.024,2552.0,2551.8,14.08381016]
[1748217782359,0.024,2552.0,2551.8,18.29781016]
[1748217783105,0.024,2552.0,2551.8,18.68948122]
[1748217784326,5.53902601,2554.4,2553.4,0.9504]
[1748217784608,1.17477945,2554.8,2553.9,0.7904]
[1748217784761,3.91435393,2554.7,2554.0,4.98832402]
[1748217784958,2.15967945,2554.8,2554.1,8.0]
[1748217785159,2.15967945,2554.8,2553.4,0.38681774]
[1748217785160,3.91435393,2554.7,2553.4,0.38681774]
[1748217785399,0.95529728,2554.7,2553.6,8.0]
[1748217785561,3.91532998,2554.1,2553.6,8.0]
[1748217785777,3.91565699,2553.9,2553.6,8.0]
[1748217785982,0.68317162,2554.6,2553.6,8.0]
[1748217786424,2.15967945,2554.8,2553.8,8.0]
[1748217786594,3.91520548,2554.2,2553.8,8.0]
[1748217786793,3.91450716,2554.6,2553.8,8.0]
[1748217786994,3.91435393,2554.7,2553.8,3.913]
[1748217787197,3.91634683,2553.4,2553.3,12.7034]
[1748217787402,3.91634683,2553.4,2553.3,3.913]
[1748217787598,3.91650021,2553.3,2553.2,3.913]
[1748217788101,3.91711387,2552.9,2552.8,3.913]
[1748217788425,3.91736406,2552.8,2552.7,0.39025114]
[1748217788623,0.9197,2554.1,2552.9,8.0]
[1748217788784,6.0994,2554.5,2553.2,8.55]
[1748217789141,3.91578942,2553.8,2553.4,8.55]
[1748217789289,3.91617323,2553.6,2553.4,8.55]
[1748217789485,3.91496691,2554.3,2553.2,0.94298782]
[1748217789730,3.91644573,2553.4,2553.3,11.913]
[1748217789886,3.91644573,2553.4,2553.3,8.0]
[1748217790089,3.91680701,2553.1,2553.0,0.38176742]
[1748217790421,3.71299891,2552.9,2552.6,1.0718]
[1748217790628,3.71299891,2552.9,2552.8,8.0]
[1748217790801,3.71299891,2552.9,2552.8,3.912]
[1748217792319,3.71299891,2552.9,2552.8,11.912]
[1748217793117,3.71299891,2552.9,2552.8,8.0]
[1748217793277,3.71299891,2552.9,2552.8,11.912]
[1748217794142,3.91696875,2553.0,2552.8,11.912]
[1748217794143,3.91588675,2553.7,2552.8,11.912]
[1748217794349,5.097,2553.4,2552.8,3.912]
[1748217794551,0.49840867,2553.6,2552.9,0.03916573]
[1748217794552,3.91683431,2553.1,2552.9,0.03916573]
[1748217794853,3.91696043,2553.0,2552.9,8.0]
[1748217795056,5.59540867,2553.6,2552.9,8.0]
[1748217795202,5.59540867,2553.6,2553.1,0.55]
[1748217795203,0.95114037,2553.5,2553.1,0.55]
[1748217795402,3.91629078,2553.5,2553.3,8.0]
[1748217796169,3.91634683,2553.4,2553.3,8.0]
[1748217797243,3.91627374,2553.5,2553.3,8.0]
[1748217797654,3.91634683,2553.4,2553.3,8.0]
[1748217798257,3.9162782,2553.5,2553.3,8.0]
[1748217798451,3.91542678,2554.0,2553.3,8.0]
[1748217798652,3.91626107,2553.5,2553.3,8.0]
[1748217798849,3.91614536,2553.6,2553.3,8.0]
[1748217798850,3.91610984,2553.6,2553.3,8.0]
[1748217799014,3.91581006,2553.8,2553.4,0.55]
[1748217799212,3.91581006,2553.8,2553.6,8.0]
[1748217799213,3.91588675,2553.7,2553.6,8.0]
[1748217799431,3.91557209,2554.0,2553.6,8.0]
[1748217799618,3.9146604,2554.5,2553.8,8.0]
[1748217799814,3.91514596,2554.2,2554.0,8.0]
[1748217800042,3.91520264,2554.2,2554.0,8.0]
[1748217800532,3.91527348,2554.1,2554.0,8.39559424]
[1748217800849,1.1062,2554.6,2554.0,8.39559424]
[1748217801057,3.91501093,2554.3,2554.0,8.39559424]
[1748217801264,3.91435393,2554.7,2554.0,8.39559424]
[1748217801439,3.91499907,2554.3,2554.1,0.55]
[1748217801752,3.91486667,2554.4,2554.3,8.0]
[1748217801957,1.17477945,2554.8,2554.3,8.0]
[1748217802133,3.9145216,2554.6,2554.4,1.6155]
[1748217802329,3.9145216,2554.6,2554.5,3.911]
[1748217802535,1.0653,2555.2,2554.5,3.911]
[1748217802536,5.88064114,2556.1,2554.8,0.55]
[1748217802745,5.88064114,2556.1,2554.6,8.0]
[1748217802746,1.96842373,2556.1,2555.3,0.55]
[1748217803036,1.96842373,2556.1,2555.6,8.55]
[1748217803237,1.96842373,2556.1,2555.8,0.55]
[1748217803451,1.96842373,2556.1,2555.2,1.013]
[1748217803676,0.5880598,2556.0,2555.4,8.0]
[1748217804127,3.91306695,2555.6,2555.4,8.0]
[1748217804322,3.91312854,2555.5,2555.4,8.0]
[1748217805167,3.91256962,2555.9,2555.2,1.563]
[1748217805168,3.91338719,2555.4,2555.2,1.563]
[1748217805373,0.78264101,2555.4,2555.3,11.91]
[1748217805578,3.91319918,2555.5,2555.4,8.0]
[1748217805783,3.91319918,2555.5,2555.3,11.91]
[1748217805784,3.91343482,2555.3,2555.2,1.013]
[1748217805937,3.91290154,2555.7,2554.8,1.0747]
[1748217806142,3.91290154,2555.7,2554.3,1.0747]
[1748217806143,3.91404751,2554.9,2554.3,1.0747]
[1748217806456,3.91427834,2554.8,2554.4,3.91]
[1748217806650,3.91312854,2555.5,2554.3,1.0747]
[1748217806651,1.1098,2555.3,2554.3,1.0747]
[1748217806863,3.91433576,2554.8,2554.5,8.0]
[1748217807042,3.91433576,2554.8,2554.4,3.91]
[1748217807387,3.91512019,2554.2,2554.1,0.05]
[1748217808141,11.91512019,2554.2,2554.1,0.05]
[1748217810838,16.85042019,2554.2,2554.1,0.37684022]
[1748217811050,3.91665361,2553.2,2553.1,0.05]
[1748217812485,3.91665361,2553.2,2553.1,0.37696823]
[1748217815451,4.8019709,2553.2,2553.1,0.37696823]
[1748217817894,4.8019709,2553.2,2553.1,0.05]
[1748217821401,8.7129709,2553.2,2553.1,0.05]
[1748217822488,9.8312709,2553.2,2553.1,0.05]
[1748217822799,18.3812709,2553.2,2553.1,0.05]
[1748217823374,3.91818822,2552.2,2552.1,0.05]
[1748217823863,5.064,2552.9,2552.1,1.079]
[1748217824059,1.1183,2553.2,2552.3,8.0]
[1748217824260,3.91728323,2552.8,2552.4,1.1951173]
[1748217824714,3.91665564,2553.2,2552.4,1.1951173]
[1748217824996,3.91748643,2552.7,2552.4,1.1951173]
[1748217825197,3.91715095,2552.9,2552.4,1.1951173]
[1748217825198,3.91730501,2552.8,2552.4,1.1951173]
[1748217825361,3.91735867,2552.8,2552.4,1.1951173]
[1748217825564,3.91733359,2552.8,2552.5,0.91951173]
[1748217825982,3.91735402,2552.8,2552.5,0.91951173]
[1748217826311,3.91744053,2552.7,2552.5,0.91951173]
[1748217826601,3.91750377,2552.7,2552.6,8.0]
[1748217826805,3.91750377,2552.7,2552.5,4.83151173]
[1748217827006,3.91750377,2552.7,2552.5,3.912]
[1748217827524,3.91750377,2552.7,2552.6,0.5]
[1748217827933,3.91731365,2552.8,2552.6,8.5]
[1748217828234,3.91742077,2552.7,2552.6,8.5]
[1748217829327,3.91742077,2552.7,2552.6,0.5]
[1748217829529,3.91742077,2552.7,2552.6,8.5]
[1748217831441,3.91742077,2552.7,2552.6,9.7412]
[1748217832643,3.91725451,2552.9,2552.6,9.7412]
[1748217832823,1.0528,2553.9,2552.8,1.0945]
[1748217832991,3.91696043,2553.0,2552.9,11.912]
[1748217833191,3.91696043,2553.0,2552.9,13.81365]
[1748217833535,3.91689432,2553.1,2552.9,13.81365]
[1748217833933,3.91696043,2553.0,2552.9,13.81365]
[1748217834133,3.91726731,2552.8,2552.7,3.912]
[1748217834496,3.91726731,2552.8,2552.6,0.5]
[1748217834497,3.91742077,2552.7,2552.6,0.5]
[1748217835549,3.91717881,2552.9,2552.6,0.5]
[1748217835756,3.91696212,2553.0,2552.7,4.762]
[1748217836046,3.91712847,2552.9,2552.7,4.762]
[1748217836354,3.91701992,2553.0,2552.7,4.762]
[1748217836720,3.91712593,2552.9,2552.7,4.762]
[1748217836924,3.91712593,2552.9,2552.8,0.5262]
[1748217837255,3.9170217,2553.0,2552.8,0.5262]
[1748217837639,3.91711387,2552.9,2552.8,0.5262]
[1748217838567,3.91711387,2552.9,2552.8,8.0]
[1748217839810,3.91711387,2552.9,2552.7,3.912]
[1748217840040,3.91726731,2552.8,2552.7,11.912]
[1748217842836,3.91619345,2553.5,2553.4,11.912]
[1748217843140,3.91611348,2553.6,2553.4,13.2073]
[1748217843648,3.91619345,2553.5,2553.4,13.2073]
[1748217845355,3.9160401,2553.6,2553.5,8.0]
[1748217845519,3.91619345,2553.5,2553.4,5.2073]
[1748217845720,3.91619345,2553.5,2553.4,11.912]
[1748217846440,3.91548717,2554.0,2553.4,11.912]
[1748217846441,3.91606717,2553.6,2553.5,8.0]
[1748217846817,3.91606717,2553.6,2553.4,3.912]
[1748217847212,1.0474,2554.2,2553.4,6.26173891]
[1748217847430,3.91509849,2554.3,2553.6,0.55]
[1748217847629,1.0748,2554.5,2553.8,8.0]
[1748217847833,3.91518392,2554.2,2553.8,8.0]
[1748217848560,3.91518392,2554.2,2553.7,8.13612089]
[1748217849344,3.91453908,2554.6,2553.9,8.0]
[1748217849544,3.91472716,2554.5,2554.1,8.0]
[1748217849751,3.91483661,2554.4,2554.1,9.42603186]
[1748217850068,3.9147314,2554.5,2554.2,0.0391468]
[1748217850269,3.91441502,2554.7,2554.3,3.911]
[1748217850475,3.91475341,2554.5,2554.3,4.9344]
[1748217850677,3.91472792,2554.5,2554.3,4.9344]
[1748217850846,0.05,2554.9,2554.3,6.37435787]
[1748217851046,3.91451275,2554.6,2554.3,6.37435787]
[1748217851890,0.05,2554.9,2554.5,10.34875724]
[1748217852029,0.05,2554.9,2554.6,3.91]
[1748217852235,3.96404798,2554.9,2554.6,3.91]
[1748217852563,3.91422437,2554.8,2554.6,3.91]
[1748217852751,4.29148919,2554.9,2554.6,5.53820421]
[1748217852949,3.96409329,2554.9,2554.6,5.53820421]
[1748217853253,0.05,2554.9,2554.7,8.0]
[1748217854338,3.96407071,2554.9,2554.7,8.0]
[1748217854672,0.05,2554.9,2554.7,8.0]
[1748217854862,0.05,2554.9,2554.8,1.35382042]
[1748217855197,0.05,2554.9,2554.6,5.53820421]
[1748217855198,3.91481365,2554.4,2553.7,0.85891571]
[1748217855495,3.91508931,2554.3,2553.9,9.03]
[1748217855638,3.91499857,2554.3,2554.1,8.0]
[1748217856074,3.91512019,2554.2,2554.1,8.0]
[1748217856254,3.91505218,2554.3,2554.1,8.0]
[1748217856459,3.91512019,2554.2,2554.1,8.0]
[1748217856650,3.91527348,2554.1,2554.0,3.91]
[1748217856943,3.91527348,2554.1,2554.0,12.62587743]
[1748217857375,3.91527348,2554.1,2554.0,4.62587743]
[1748217857566,3.91527348,2554.1,2554.0,3.91]
[1748217857879,3.91516227,2554.2,2554.0,11.91]
[1748217859179,3.91527348,2554.1,2554.0,8.0]
[1748217859545,3.91573341,2553.8,2553.7,6.01]
[1748217859753,3.91573341,2553.8,2553.7,9.92]
[1748217859957,3.91573341,2553.8,2553.7,3.91]
[1748217860355,3.91573341,2553.8,2553.7,11.91]
[1748217864090,3.91573341,2553.8,2553.7,8.0]
[1748217864290,3.91573341,2553.8,2553.7,11.91]
[1748217867596,3.91573341,2553.8,2553.7,11.81]
[1748217869111,3.91573341,2553.8,2553.7,7.9]
[1748217870509,3.91588675,2553.7,2553.6,3.91]
[1748217870808,3.91588675,2553.7,2553.2,6.01]
[1748217870809,2.22362308,2553.7,2553.2,8.0]
[1748217871113,3.91650021,2553.3,2553.2,3.91]
[1748217871513,3.91650021,2553.3,2552.8,0.45880519]
[1748217871514,3.91711387,2552.9,2552.8,0.45880519]
[1748217872089,3.91799699,2552.4,2552.1,0.05]
[1748217872323,3.91803471,2552.3,2552.2,11.91]
[1748217872527,3.91803471,2552.3,2552.2,1.30201]
[1748217872730,3.91818822,2552.2,2552.1,0.05]
[1748217873034,3.91818822,2552.2,2552.1,11.96]
[1748217873242,3.91818822,2552.2,2552.1,3.96]
[1748217873591,3.91818822,2552.2,2552.1,0.05]
[1748217873819,4.97488822,2552.2,2552.1,0.05]
[1748217874024,5.86418078,2552.2,2552.1,0.05]
[1748217886971,8.21718078,2552.2,2552.1,0.05]